[Event "*** Titled Tuesday Blitz"]
[Site "Chess.com"]
[Date "2020.05.19"]
[Round "4"]
[White "TreinadorBR"]
[Black "Gandrade2"]
[Result "1-0"]
[WhiteElo "2261"]
[BlackElo "2034"]
[TimeControl "180+1"]
[EndTime "12:40:38 PDT"]
[Termination "TreinadorBR won on time"]

1. e4 {[%clk 0:03:00.9]} 1... c6 {[%clk 0:02:59.7]} 2. d4 {[%clk 0:02:59.1]}
2... d5 {[%clk 0:02:59.9]} 3. e5 {[%clk 0:02:59.4]} 3... c5 {[%clk 0:02:59]} 4.
Nf3 {[%clk 0:02:58.4]} 4... cxd4 {[%clk 0:02:58.7]} 5. Nxd4 {[%clk 0:02:57.2]}
5... e6 {[%clk 0:02:58.6]} 6. Be2 {[%clk 0:02:51.5]} 6... Nc6 {[%clk 0:02:58.7]}
7. Nxc6 {[%clk 0:02:48.8]} 7... bxc6 {[%clk 0:02:59.6]} 8. O-O {[%clk
0:02:44.9]} 8... Ne7 {[%clk 0:02:55.8]} 9. Kh1 {[%clk 0:02:44.3]} 9... Ng6
{[%clk 0:02:52.2]} 10. f4 {[%clk 0:02:43]} 10... Be7 {[%clk 0:02:45]} 11. Nd2
{[%clk 0:02:41.1]} 11... O-O {[%clk 0:02:40.6]} 12. Nf3 {[%clk 0:02:40]} 12...
c5 {[%clk 0:02:36.6]} 13. c3 {[%clk 0:02:38.6]} 13... Bb7 {[%clk 0:02:35.6]} 14.
Be3 {[%clk 0:02:29.6]} 14... Qc7 {[%clk 0:02:26.7]} 15. Qe1 {[%clk 0:02:15.1]}
15... f6 {[%clk 0:02:07.6]} 16. exf6 {[%clk 0:02:13.1]} 16... Rxf6 {[%clk
0:01:52.2]} 17. Qd2 {[%clk 0:01:45.1]} 17... Raf8 {[%clk 0:01:45.4]} 18. Ng5
{[%clk 0:01:37.2]} 18... Qd6 {[%clk 0:01:21.2]} 19. Bg4 {[%clk 0:01:23.7]} 19...
Bc8 {[%clk 0:01:16.4]} 20. a3 {[%clk 0:01:18.2]} 20... Nxf4 {[%clk 0:01:01.8]}
21. Bxf4 {[%clk 0:01:04.5]} 21... Rxf4 {[%clk 0:01:01.6]} 22. Rxf4 {[%clk
0:01:03.8]} 22... Rxf4 {[%clk 0:00:55.1]} 23. Bxe6+ {[%clk 0:00:42.4]} 23...
Bxe6 {[%clk 0:00:29.2]} 24. Nxe6 {[%clk 0:00:41.7]} 24... Re4 {[%clk 0:00:24.2]}
25. Ng5 {[%clk 0:00:36.2]} 25... Bxg5 {[%clk 0:00:20.1]} 26. Qxg5 {[%clk
0:00:37.1]} 26... Qe6 {[%clk 0:00:16.2]} 27. Qd8+ {[%clk 0:00:31.5]} 27... Kf7
{[%clk 0:00:12.1]} 28. Qc7+ {[%clk 0:00:31]} 28... Kg6 {[%clk 0:00:10.7]} 29.
Qxc5 {[%clk 0:00:30.7]} 29... Re2 {[%clk 0:00:06.1]} 30. Qxa7 {[%clk 0:00:27.3]}
30... Qe4 {[%clk 0:00:06.3]} 31. Rg1 {[%clk 0:00:25.7]} 31... Rxb2 {[%clk
0:00:05.6]} 32. Qa6+ {[%clk 0:00:24.2]} 32... Kf7 {[%clk 0:00:02.8]} 33. Qa5
{[%clk 0:00:21.9]} 33... Qe2 {[%clk 0:00:01.9]} 34. Qc7+ {[%clk 0:00:20.5]}
34... Ke6 {[%clk 0:00:01.8]} 35. Qc6+ {[%clk 0:00:20.4]} 35... Ke7 {[%clk
0:00:01.2]} 36. Qxd5 {[%clk 0:00:19.6]} 36... Rd2 {[%clk 0:00:01.3]} 37. Qc5+
{[%clk 0:00:18.8]} 1-0

[Event "*** Titled Tuesday Blitz"]
[Site "Chess.com"]
[Date "2020.05.19"]
[Round "4"]
[White "woodhy"]
[Black "Kensei26"]
[Result "1-0"]
[WhiteElo "2449"]
[BlackElo "2260"]
[TimeControl "180+1"]
[EndTime "12:40:39 PDT"]
[Termination "woodhy won by resignation"]

1. e4 {[%clk 0:03:00.9]} 1... d6 {[%clk 0:02:59.4]} 2. Nf3 {[%clk 0:03:01]} 2...
Nf6 {[%clk 0:02:56.6]} 3. Nc3 {[%clk 0:03:00.8]} 3... g6 {[%clk 0:02:57]} 4. d4
{[%clk 0:03:01.4]} 4... Bg7 {[%clk 0:02:57.6]} 5. h3 {[%clk 0:03:01.4]} 5... O-O
{[%clk 0:02:57.3]} 6. Be3 {[%clk 0:03:02.1]} 6... c6 {[%clk 0:02:57.3]} 7. Bd3
{[%clk 0:02:59.5]} 7... Qc7 {[%clk 0:02:57]} 8. O-O {[%clk 0:02:59.4]} 8... Nbd7
{[%clk 0:02:57.1]} 9. Ne2 {[%clk 0:02:59.7]} 9... Re8 {[%clk 0:02:57.4]} 10. Ng3
{[%clk 0:02:59.1]} 10... e5 {[%clk 0:02:57.3]} 11. c3 {[%clk 0:02:58.5]} 11...
d5 {[%clk 0:02:50.2]} 12. dxe5 {[%clk 0:02:55.5]} 12... Nxe5 {[%clk 0:02:48]}
13. Nxe5 {[%clk 0:02:55.6]} 13... Qxe5 {[%clk 0:02:44.5]} 14. f4 {[%clk
0:02:32.7]} 14... Qc7 {[%clk 0:02:44]} 15. e5 {[%clk 0:02:32.4]} 15... Nd7
{[%clk 0:02:42.4]} 16. Qf3 {[%clk 0:02:12.4]} 16... Nf8 {[%clk 0:02:40.9]} 17.
h4 {[%clk 0:02:07.8]} 17... Be6 {[%clk 0:02:13.5]} 18. h5 {[%clk 0:02:06.3]}
18... c5 {[%clk 0:02:10.8]} 19. hxg6 {[%clk 0:02:02.2]} 19... hxg6 {[%clk
0:02:10.2]} 20. Rae1 {[%clk 0:01:59.9]} 20... Rad8 {[%clk 0:02:07.3]} 21. Bb1
{[%clk 0:01:59.7]} 21... d4 {[%clk 0:02:07]} 22. cxd4 {[%clk 0:01:58.9]} 22...
cxd4 {[%clk 0:02:07.4]} 23. Bd2 {[%clk 0:01:59.1]} 23... Bd5 {[%clk 0:01:41.3]}
24. Qg4 {[%clk 0:01:55.8]} 24... Qc6 {[%clk 0:01:37.8]} 25. Ne4 {[%clk
0:01:42.9]} 25... Nh7 {[%clk 0:01:34.3]} 26. Kf2 {[%clk 0:01:34.8]} 26... Qb6
{[%clk 0:01:29.4]} 27. b3 {[%clk 0:01:34.2]} 27... d3+ {[%clk 0:01:29.1]} 28.
Be3 {[%clk 0:01:33.4]} 28... Qa5 {[%clk 0:01:28.7]} 29. Bd2 {[%clk 0:01:08.3]}
29... Qb6+ {[%clk 0:01:26.3]} 30. Be3 {[%clk 0:00:59]} 30... Qa5 {[%clk
0:01:22.7]} 31. Nd2 {[%clk 0:00:51]} 31... Be6 {[%clk 0:01:07.7]} 32. Qh4 {[%clk
0:00:49.7]} 32... Bf5 {[%clk 0:01:05.6]} 33. Rh1 {[%clk 0:00:45.7]} 33... g5
{[%clk 0:01:06]} 34. Qh2 {[%clk 0:00:29.8]} 34... gxf4 {[%clk 0:01:04.3]} 35.
Bxf4 {[%clk 0:00:30.1]} 35... Rxe5 {[%clk 0:01:03.4]} 36. Bxe5 {[%clk
0:00:29.4]} 36... Qxd2+ {[%clk 0:01:02.4]} 37. Kf1 {[%clk 0:00:26.1]} 37... Re8
{[%clk 0:00:57.7]} 38. Qg3 {[%clk 0:00:16.3]} 38... Ng5 {[%clk 0:00:52.5]} 39.
Bxg7 {[%clk 0:00:13.1]} 39... Rxe1+ {[%clk 0:00:49.5]} 40. Qxe1 {[%clk 0:00:14]}
40... Qxe1+ {[%clk 0:00:49]} 41. Kxe1 {[%clk 0:00:14.9]} 41... Kxg7 {[%clk
0:00:48.3]} 42. Kd2 {[%clk 0:00:15.1]} 42... Ne6 {[%clk 0:00:47.8]} 43. Bxd3
{[%clk 0:00:14.6]} 43... Bg4 {[%clk 0:00:46.6]} 44. Ke3 {[%clk 0:00:13.9]} 44...
f5 {[%clk 0:00:46.7]} 45. g3 {[%clk 0:00:13.9]} 45... Kf6 {[%clk 0:00:46.7]} 46.
Rh7 {[%clk 0:00:13.3]} 46... Nc5 {[%clk 0:00:45.8]} 47. b4 {[%clk 0:00:13.1]}
47... Nxd3 {[%clk 0:00:45.4]} 48. Kxd3 {[%clk 0:00:14]} 48... a5 {[%clk
0:00:44.4]} 49. bxa5 {[%clk 0:00:13.7]} 49... Bf3 {[%clk 0:00:44.3]} 50. Ke3
{[%clk 0:00:13.5]} 50... Bc6 {[%clk 0:00:44]} 51. a6 {[%clk 0:00:13.2]} 51...
bxa6 {[%clk 0:00:44]} 52. Rh6+ {[%clk 0:00:12.8]} 52... Ke5 {[%clk 0:00:43.5]}
53. Rxc6 {[%clk 0:00:13.7]} 53... Kd5 {[%clk 0:00:44.1]} 54. Rxa6 {[%clk
0:00:13.6]} 54... Ke5 {[%clk 0:00:44.5]} 55. Ra5+ {[%clk 0:00:14.5]} 55... Kf6
{[%clk 0:00:44.6]} 56. Kf4 {[%clk 0:00:15.4]} 56... Ke6 {[%clk 0:00:44.8]} 57.
Rxf5 {[%clk 0:00:16.3]} 57... Kd6 {[%clk 0:00:45.6]} 58. g4 {[%clk 0:00:16.7]}
1-0

[Event "*** Titled Tuesday Blitz"]
[Site "Chess.com"]
[Date "2020.05.19"]
[Round "4"]
[White "GM_dmitrij"]
[Black "szachuspl"]
[Result "0-1"]
[WhiteElo "2888"]
[BlackElo "2550"]
[TimeControl "180+1"]
[EndTime "12:40:40 PDT"]
[Termination "szachuspl won by checkmate"]

1. e4 {[%clk 0:03:00.9]} 1... c6 {[%clk 0:02:58.9]} 2. d4 {[%clk 0:03:00.6]}
2... d5 {[%clk 0:02:56.7]} 3. e5 {[%clk 0:03:01]} 3... Bf5 {[%clk 0:02:55.8]} 4.
h4 {[%clk 0:03:01.6]} 4... h5 {[%clk 0:02:55.4]} 5. c4 {[%clk 0:03:02.2]} 5...
e6 {[%clk 0:02:54.6]} 6. Nc3 {[%clk 0:03:02.8]} 6... Nd7 {[%clk 0:02:53]} 7.
cxd5 {[%clk 0:03:01.8]} 7... cxd5 {[%clk 0:02:50.6]} 8. Bd3 {[%clk 0:03:02.7]}
8... Bxd3 {[%clk 0:02:49.8]} 9. Qxd3 {[%clk 0:03:03.6]} 9... a6 {[%clk
0:02:48.9]} 10. Bg5 {[%clk 0:03:02.3]} 10... Be7 {[%clk 0:02:47]} 11. Nf3 {[%clk
0:03:02.3]} 11... Bxg5 {[%clk 0:02:46.6]} 12. hxg5 {[%clk 0:02:56.7]} 12... Ne7
{[%clk 0:02:36.1]} 13. g4 {[%clk 0:02:52.8]} 13... h4 {[%clk 0:02:35.7]} 14.
Rxh4 {[%clk 0:02:49.1]} 14... Rxh4 {[%clk 0:02:33]} 15. Nxh4 {[%clk 0:02:50]}
15... g6 {[%clk 0:02:33.6]} 16. f4 {[%clk 0:02:45.7]} 16... Qb6 {[%clk
0:02:32.2]} 17. O-O-O {[%clk 0:02:45.2]} 17... O-O-O {[%clk 0:02:31.4]} 18. Nf3
{[%clk 0:02:38.8]} 18... Rh8 {[%clk 0:02:30]} 19. Nd2 {[%clk 0:02:35.9]} 19...
Kb8 {[%clk 0:02:28.9]} 20. Nb3 {[%clk 0:02:34.2]} 20... Qb4 {[%clk 0:02:26]} 21.
Kb1 {[%clk 0:02:04]} 21... Rh2 {[%clk 0:02:23.2]} 22. Qg3 {[%clk 0:01:41.7]}
22... Rh8 {[%clk 0:02:18.8]} 23. Ne2 {[%clk 0:01:27.1]} 23... Nb6 {[%clk
0:02:16.1]} 24. Nc5 {[%clk 0:01:10.6]} 24... Nc4 {[%clk 0:02:11.3]} 25. b3
{[%clk 0:01:09]} 25... Ka7 {[%clk 0:01:57.8]} 26. Ka1 {[%clk 0:00:48.9]} 26...
Na3 {[%clk 0:01:52.5]} 27. Qc3 {[%clk 0:00:34.2]} 27... Qxc3+ {[%clk 0:01:42.7]}
28. Nxc3 {[%clk 0:00:35.1]} 28... Rh2 {[%clk 0:01:42.4]} 29. Rf1 {[%clk
0:00:20.5]} 29... Nc2+ {[%clk 0:01:39.8]} 30. Kb1 {[%clk 0:00:20.7]} 30... Nxd4
{[%clk 0:01:40.1]} 31. Nd7 {[%clk 0:00:20.5]} 31... Nec6 {[%clk 0:01:28.7]} 32.
Nf6 {[%clk 0:00:17.8]} 32... Nb4 {[%clk 0:01:28.7]} 33. Rd1 {[%clk 0:00:13.6]}
33... Ndc2 {[%clk 0:01:25.1]} 34. Ne8 {[%clk 0:00:10.8]} 34... Na3+ {[%clk
0:01:23.7]} 35. Ka1 {[%clk 0:00:10.7]} 35... Rc2 {[%clk 0:01:19.8]} 36. Nd6
{[%clk 0:00:09.2]} 36... Rxc3 {[%clk 0:01:18.8]} 37. Kb2 {[%clk 0:00:10.1]}
37... Rc2+ {[%clk 0:01:11.5]} 38. Kxa3 {[%clk 0:00:10.4]} 38... a5 {[%clk
0:01:12.1]} 39. Ka4 {[%clk 0:00:10.4]} 39... Ka6 {[%clk 0:00:58.7]} 40. a3
{[%clk 0:00:09]} 40... Ra2 {[%clk 0:00:35.2]} 41. Rc1 {[%clk 0:00:05.9]} 41...
Nc2 {[%clk 0:00:35.1]} 42. Nb5 {[%clk 0:00:05]} 42... Nxa3 {[%clk 0:00:27.1]}
43. Nxa3 {[%clk 0:00:03.7]} 43... b5# {[%clk 0:00:27]} 0-1

[Event "*** Titled Tuesday Blitz"]
[Site "Chess.com"]
[Date "2020.05.19"]
[Round "4"]
[White "enriquetejedor"]
[Black "Borsuk_Konstantin"]
[Result "1-0"]
[WhiteElo "2482"]
[BlackElo "2625"]
[TimeControl "180+1"]
[EndTime "12:40:40 PDT"]
[Termination "enriquetejedor won by resignation"]

1. e4 {[%clk 0:03:00.9]} 1... e6 {[%clk 0:02:59.5]} 2. d4 {[%clk 0:03:00.9]}
2... d5 {[%clk 0:03:00]} 3. Nc3 {[%clk 0:02:55.4]} 3... Bb4 {[%clk 0:02:59.1]}
4. Ne2 {[%clk 0:02:54.3]} 4... Nc6 {[%clk 0:02:57.9]} 5. a3 {[%clk 0:02:48.3]}
5... Ba5 {[%clk 0:02:57.6]} 6. b4 {[%clk 0:02:38.8]} 6... Bb6 {[%clk 0:02:56.9]}
7. Be3 {[%clk 0:02:38]} 7... Nge7 {[%clk 0:02:44.2]} 8. exd5 {[%clk 0:02:19.7]}
8... Nxd5 {[%clk 0:02:27.9]} 9. Nxd5 {[%clk 0:01:58.1]} 9... exd5 {[%clk
0:02:28.8]} 10. c3 {[%clk 0:01:53]} 10... Ne7 {[%clk 0:02:23.4]} 11. Ng3 {[%clk
0:01:51.2]} 11... c6 {[%clk 0:02:19.1]} 12. Bd3 {[%clk 0:01:50]} 12... Bc7
{[%clk 0:02:18.1]} 13. O-O {[%clk 0:01:49.3]} 13... O-O {[%clk 0:01:12.9]} 14.
Qc2 {[%clk 0:01:47.9]} 14... h6 {[%clk 0:01:01.3]} 15. Qd2 {[%clk 0:01:42.9]}
15... f5 {[%clk 0:00:57.9]} 16. Bf4 {[%clk 0:01:34.9]} 16... Bxf4 {[%clk
0:00:39.7]} 17. Qxf4 {[%clk 0:01:34.2]} 17... Ng6 {[%clk 0:00:40.1]} 18. Qd2
{[%clk 0:01:32.8]} 18... Qg5 {[%clk 0:00:30.8]} 19. Qxg5 {[%clk 0:01:32.5]}
19... hxg5 {[%clk 0:00:30.2]} 20. Rfe1 {[%clk 0:01:33.4]} 20... Bd7 {[%clk
0:00:27.7]} 21. Ne2 {[%clk 0:01:21.7]} 21... Rf6 {[%clk 0:00:22]} 22. Nc1 {[%clk
0:01:16.2]} 22... Kf7 {[%clk 0:00:20.5]} 23. Nb3 {[%clk 0:01:16.2]} 23... Rh8
{[%clk 0:00:20.1]} 24. a4 {[%clk 0:01:10.8]} 24... Nf4 {[%clk 0:00:19.1]} 25.
Bf1 {[%clk 0:01:10.8]} 25... Rfh6 {[%clk 0:00:19.1]} 26. h3 {[%clk 0:01:08.3]}
26... g4 {[%clk 0:00:18.8]} 27. Nc5 {[%clk 0:01:08.3]} 27... Bc8 {[%clk
0:00:18.1]} 28. a5 {[%clk 0:01:05.7]} 28... gxh3 {[%clk 0:00:16.5]} 29. g3
{[%clk 0:01:06.1]} 29... h2+ {[%clk 0:00:16.4]} 30. Kh1 {[%clk 0:01:06.2]} 30...
Nh3 {[%clk 0:00:16.1]} 31. Nd3 {[%clk 0:01:05.5]} 31... f4 {[%clk 0:00:15.4]}
32. g4 {[%clk 0:01:03.5]} 32... Bxg4 {[%clk 0:00:14.5]} 33. Ne5+ {[%clk
0:01:03.1]} 33... Kf8 {[%clk 0:00:09.9]} 34. Nxg4 {[%clk 0:01:03.3]} 34... Rh4
{[%clk 0:00:10.5]} 35. Bxh3 {[%clk 0:01:02.4]} 35... Rxh3 {[%clk 0:00:10.7]} 36.
Ne5 {[%clk 0:00:59.5]} 36... R8h6 {[%clk 0:00:09.3]} 37. f3 {[%clk 0:00:57]}
37... g5 {[%clk 0:00:07.7]} 38. Rf1 {[%clk 0:00:55.9]} 38... Ke7 {[%clk
0:00:05.8]} 39. Ng4 {[%clk 0:00:55.1]} 39... Rh8 {[%clk 0:00:04.6]} 40. Rae1+
{[%clk 0:00:54.8]} 40... Kd7 {[%clk 0:00:04.8]} 41. Nf6+ {[%clk 0:00:54.3]}
41... Kc8 {[%clk 0:00:04.7]} 42. Re7 {[%clk 0:00:54.2]} 42... Rg3 {[%clk
0:00:04.4]} 43. a6 {[%clk 0:00:49.7]} 43... bxa6 {[%clk 0:00:03.4]} 44. Rxa7
{[%clk 0:00:49.7]} 44... Kb8 {[%clk 0:00:03.9]} 45. Rxa6 {[%clk 0:00:50]} 45...
Kb7 {[%clk 0:00:04.1]} 46. Ra2 {[%clk 0:00:49.6]} 46... Rhh3 {[%clk 0:00:03.3]}
47. Raf2 {[%clk 0:00:46.1]} 47... Rxf3 {[%clk 0:00:03.5]} 48. Rxf3 {[%clk
0:00:45.6]} 1-0

[Event "*** Titled Tuesday Blitz"]
[Site "Chess.com"]
[Date "2020.05.19"]
[Round "4"]
[White "Jagerrmeisterr"]
[Black "Benjoneliere44"]
[Result "1-0"]
[WhiteElo "2659"]
[BlackElo "2480"]
[TimeControl "180+1"]
[EndTime "12:40:41 PDT"]
[Termination "Jagerrmeisterr won by resignation"]

1. e4 {[%clk 0:03:00.9]} 1... c5 {[%clk 0:02:59.8]} 2. Nc3 {[%clk 0:02:59.5]}
2... Nc6 {[%clk 0:02:59.2]} 3. g3 {[%clk 0:02:59.9]} 3... g6 {[%clk 0:02:59]} 4.
Bg2 {[%clk 0:03:00.8]} 4... Bg7 {[%clk 0:02:59.4]} 5. d3 {[%clk 0:03:01.7]} 5...
Nd4 {[%clk 0:02:59.5]} 6. Be3 {[%clk 0:03:02.6]} 6... Qa5 {[%clk 0:02:59.5]} 7.
Qd2 {[%clk 0:03:02.4]} 7... d6 {[%clk 0:02:56.1]} 8. f4 {[%clk 0:03:02.3]} 8...
Nf6 {[%clk 0:02:53.5]} 9. Nf3 {[%clk 0:02:59.2]} 9... Ng4 {[%clk 0:02:25.5]} 10.
Bg1 {[%clk 0:02:52.7]} 10... f5 {[%clk 0:02:23]} 11. h3 {[%clk 0:02:48.1]} 11...
Nh6 {[%clk 0:02:23]} 12. Be3 {[%clk 0:02:43.5]} 12... O-O {[%clk 0:02:20.4]} 13.
O-O {[%clk 0:02:43.1]} 13... e6 {[%clk 0:02:15.7]} 14. Kh1 {[%clk 0:02:36.4]}
14... Bd7 {[%clk 0:02:13.9]} 15. a3 {[%clk 0:02:27.8]} 15... Nxf3 {[%clk
0:02:07.1]} 16. Bxf3 {[%clk 0:02:27.1]} 16... Bc6 {[%clk 0:02:07.6]} 17. g4
{[%clk 0:02:14.2]} 17... Qc7 {[%clk 0:02:04]} 18. Rae1 {[%clk 0:02:07]} 18...
Rae8 {[%clk 0:01:59.5]} 19. Qg2 {[%clk 0:02:00.2]} 19... Kh8 {[%clk 0:01:54.4]}
20. g5 {[%clk 0:01:51.6]} 20... Ng8 {[%clk 0:01:33.1]} 21. h4 {[%clk 0:01:51.8]}
21... Ne7 {[%clk 0:01:32.4]} 22. h5 {[%clk 0:01:49.6]} 22... Kg8 {[%clk
0:01:31.1]} 23. Re2 {[%clk 0:01:35.3]} 23... fxe4 {[%clk 0:01:25]} 24. dxe4
{[%clk 0:01:31.3]} 24... e5 {[%clk 0:01:24.2]} 25. Bg4 {[%clk 0:01:06.8]} 25...
Bd7 {[%clk 0:01:22.4]} 26. hxg6 {[%clk 0:00:54.7]} 26... hxg6 {[%clk 0:01:19.4]}
27. f5 {[%clk 0:00:50.2]} 27... gxf5 {[%clk 0:01:16]} 28. exf5 {[%clk
0:00:49.4]} 28... Bxf5 {[%clk 0:01:15.6]} 29. Nd5 {[%clk 0:00:45.5]} 29... Qd7
{[%clk 0:00:23.5]} 30. Nf6+ {[%clk 0:00:45.6]} 30... Bxf6 {[%clk 0:00:17]} 31.
gxf6 {[%clk 0:00:45.7]} 31... Bxg4 {[%clk 0:00:16.7]} 32. Ref2 {[%clk
0:00:30.7]} 32... Ng6 {[%clk 0:00:15.4]} 33. f7+ {[%clk 0:00:30.2]} 33... Kh8
{[%clk 0:00:12]} 34. fxe8=Q {[%clk 0:00:30.2]} 34... Rxe8 {[%clk 0:00:12.3]} 35.
Rf7 {[%clk 0:00:29.4]} 35... Qc8 {[%clk 0:00:08.8]} 36. Qh2+ {[%clk 0:00:20.9]}
36... Bh3 {[%clk 0:00:09]} 37. R1f3 {[%clk 0:00:21.2]} 37... Kg8 {[%clk
0:00:08.3]} 38. R7f6 {[%clk 0:00:19.6]} 38... Re6 {[%clk 0:00:03.8]} 39. Qxh3
{[%clk 0:00:18.7]} 1-0

[Event "*** Titled Tuesday Blitz"]
[Site "Chess.com"]
[Date "2020.05.19"]
[Round "4"]
[White "Gromes7"]
[Black "DDTerziev04"]
[Result "0-1"]
[WhiteElo "2021"]
[BlackElo "2255"]
[TimeControl "180+1"]
[EndTime "12:40:41 PDT"]
[Termination "DDTerziev04 won by resignation"]

1. d4 {[%clk 0:02:59.7]} 1... d5 {[%clk 0:02:59.7]} 2. Nf3 {[%clk 0:02:59.2]}
2... Nf6 {[%clk 0:02:59.4]} 3. g3 {[%clk 0:02:59.6]} 3... c5 {[%clk 0:02:56.5]}
4. Bg2 {[%clk 0:02:59.7]} 4... Nc6 {[%clk 0:02:56.1]} 5. O-O {[%clk 0:02:59.6]}
5... Bg4 {[%clk 0:02:50.6]} 6. c4 {[%clk 0:02:53.1]} 6... Bxf3 {[%clk
0:02:47.6]} 7. Bxf3 {[%clk 0:02:53]} 7... Nxd4 {[%clk 0:02:47.6]} 8. Qa4+ {[%clk
0:02:44.1]} 8... Nc6 {[%clk 0:02:45.3]} 9. cxd5 {[%clk 0:02:40.4]} 9... Nxd5
{[%clk 0:02:33.1]} 10. Rd1 {[%clk 0:02:40.7]} 10... e6 {[%clk 0:02:31.8]} 11. e4
{[%clk 0:02:37.5]} 11... Qf6 {[%clk 0:02:21.6]} 12. exd5 {[%clk 0:02:21.4]}
12... Qxf3 {[%clk 0:02:21]} 13. dxc6 {[%clk 0:02:15.3]} 13... b5 {[%clk
0:02:20.6]} 14. Qc2 {[%clk 0:02:13.8]} 14... Qxc6 {[%clk 0:02:19.3]} 15. Nd2
{[%clk 0:02:10.1]} 15... Be7 {[%clk 0:02:18.3]} 16. Qe4 {[%clk 0:02:09.2]} 16...
Qc8 {[%clk 0:02:15.5]} 17. Nf3 {[%clk 0:02:03.7]} 17... O-O {[%clk 0:02:14.2]}
18. Be3 {[%clk 0:01:59]} 18... h6 {[%clk 0:02:06]} 19. Rac1 {[%clk 0:01:56.9]}
19... c4 {[%clk 0:01:59.3]} 20. Ne5 {[%clk 0:01:47]} 20... Re8 {[%clk
0:01:43.1]} 21. a3 {[%clk 0:01:25.4]} 21... Bf6 {[%clk 0:01:36.8]} 22. Rd6
{[%clk 0:01:01.9]} 22... Qc7 {[%clk 0:01:26.4]} 23. Rcd1 {[%clk 0:01:00.1]}
23... Rac8 {[%clk 0:01:02.6]} 24. Bf4 {[%clk 0:00:59.2]} 24... Be7 {[%clk
0:00:57.1]} 25. Rd7 {[%clk 0:00:58]} 25... Qb6 {[%clk 0:00:50.1]} 26. Be3 {[%clk
0:00:53.2]} 26... Bc5 {[%clk 0:00:49.5]} 27. Bxc5 {[%clk 0:00:44.5]} 27... Qxc5
{[%clk 0:00:50.4]} 28. Rxf7 {[%clk 0:00:39.8]} 28... Red8 {[%clk 0:00:37.8]} 29.
Rfd7 {[%clk 0:00:39.5]} 29... Rf8 {[%clk 0:00:31.9]} 30. Ng6 {[%clk 0:00:38.2]}
30... Rxf2 {[%clk 0:00:18.3]} 31. Rd8+ {[%clk 0:00:18.4]} 31... Rf8+ {[%clk
0:00:10.3]} 32. Qd4 {[%clk 0:00:15.3]} 32... Rfxd8 {[%clk 0:00:07.4]} 33. Qxc5
{[%clk 0:00:05.2]} 33... Rxd1+ {[%clk 0:00:06.8]} 0-1

[Event "*** Titled Tuesday Blitz"]
[Site "Chess.com"]
[Date "2020.05.19"]
[Round "4"]
[White "Last7Samurai"]
[Black "Rozum_Ivan"]
[Result "1/2-1/2"]
[WhiteElo "2827"]
[BlackElo "2604"]
[TimeControl "180+1"]
[EndTime "12:40:42 PDT"]
[Termination "Game drawn by repetition"]

1. e4 {[%clk 0:03:00.9]} 1... c6 {[%clk 0:02:59.1]} 2. d4 {[%clk 0:02:56.8]}
2... d5 {[%clk 0:03:00]} 3. exd5 {[%clk 0:02:53]} 3... cxd5 {[%clk 0:03:00.9]}
4. Bf4 {[%clk 0:02:53.4]} 4... Nc6 {[%clk 0:02:59.4]} 5. c3 {[%clk 0:02:53.4]}
5... Bf5 {[%clk 0:02:59.6]} 6. Nf3 {[%clk 0:02:52.5]} 6... e6 {[%clk 0:02:55.1]}
7. Nbd2 {[%clk 0:02:51.7]} 7... Nf6 {[%clk 0:02:53.6]} 8. Qb3 {[%clk 0:02:50.2]}
8... Qc8 {[%clk 0:02:39.1]} 9. Nh4 {[%clk 0:02:48.7]} 9... Bg4 {[%clk
0:02:31.1]} 10. h3 {[%clk 0:02:47.6]} 10... Bh5 {[%clk 0:02:31.5]} 11. g4 {[%clk
0:02:47.4]} 11... Bg6 {[%clk 0:02:32.1]} 12. Nxg6 {[%clk 0:02:35.3]} 12... hxg6
{[%clk 0:02:33]} 13. Bg2 {[%clk 0:02:35.7]} 13... Be7 {[%clk 0:02:31.4]} 14. O-O
{[%clk 0:02:31.4]} 14... O-O {[%clk 0:02:29.4]} 15. Rfe1 {[%clk 0:02:30.2]}
15... a6 {[%clk 0:02:28]} 16. Qd1 {[%clk 0:02:22.4]} 16... b5 {[%clk 0:02:26.2]}
17. Bf3 {[%clk 0:02:21.1]} 17... Nd7 {[%clk 0:02:22.4]} 18. Kg2 {[%clk
0:02:16.9]} 18... Qd8 {[%clk 0:02:21.6]} 19. Qe2 {[%clk 0:02:08.1]} 19... Bg5
{[%clk 0:02:17.4]} 20. Bg3 {[%clk 0:02:07.3]} 20... Bh4 {[%clk 0:02:16.9]} 21.
Nf1 {[%clk 0:02:06.2]} 21... Re8 {[%clk 0:02:13.4]} 22. Rad1 {[%clk 0:02:05.2]}
22... Nb6 {[%clk 0:02:10.4]} 23. Rd3 {[%clk 0:01:45.3]} 23... Ra7 {[%clk
0:02:09.7]} 24. Kh2 {[%clk 0:01:38.6]} 24... Rd7 {[%clk 0:02:09.3]} 25. Nd2
{[%clk 0:01:36.9]} 25... Bxg3+ {[%clk 0:02:04.1]} 26. fxg3 {[%clk 0:01:31.7]}
26... e5 {[%clk 0:02:04.3]} 27. dxe5 {[%clk 0:01:26.9]} 27... Nxe5 {[%clk
0:01:42.5]} 28. Re3 {[%clk 0:01:26.6]} 28... Rde7 {[%clk 0:01:42.5]} 29. Kg2
{[%clk 0:01:23]} 29... Nbc4 {[%clk 0:01:12.6]} 30. Nxc4 {[%clk 0:01:14.6]} 30...
dxc4 {[%clk 0:01:13.5]} 31. Be4 {[%clk 0:01:02.2]} 31... Nd3 {[%clk 0:01:08.6]}
32. Rf1 {[%clk 0:00:50.5]} 32... Qb6 {[%clk 0:01:05.4]} 33. Qf3 {[%clk
0:00:39.6]} 33... Nxb2 {[%clk 0:00:52.9]} 34. Re2 {[%clk 0:00:29.8]} 34... Na4
{[%clk 0:00:48]} 35. Ref2 {[%clk 0:00:19.7]} 35... Rxe4 {[%clk 0:00:44.2]} 36.
Qxf7+ {[%clk 0:00:19.8]} 36... Kh7 {[%clk 0:00:44.6]} 37. Rf6 {[%clk 0:00:20.3]}
37... Re2+ {[%clk 0:00:37.7]} 38. Kh1 {[%clk 0:00:20.2]} 38... Qe3 {[%clk
0:00:17.6]} 39. Qxg6+ {[%clk 0:00:19.6]} 39... Kg8 {[%clk 0:00:17.1]} 40. Qf7+
{[%clk 0:00:18.4]} 40... Kh7 {[%clk 0:00:13.5]} 41. Qh5+ {[%clk 0:00:18.1]}
41... Kg8 {[%clk 0:00:13.6]} 42. Qf7+ {[%clk 0:00:18.2]} 42... Kh7 {[%clk
0:00:13.7]} 43. Qh5+ {[%clk 0:00:18.4]} 43... Kg8 {[%clk 0:00:14]} 44. Qf7+
{[%clk 0:00:18.4]} 1/2-1/2